fUSD/lending_fUSD_20250222
["ID","MTS","AMOUNT","RATE_DAILY","PERIOD"]
[354116383,1740255052258,-151.0,0.000149,2]
[354116384,1740255052269,-151.0,0.000149,2]
[354116385,1740255052278,-151.0,0.000149,2]
[354116386,1740255052290,-151.0,0.000149,2]
[354116387,1740255052303,-151.0,0.000149,2]
[354116388,1740255052313,-151.0,0.000149,2]
[354116389,1740255052323,-151.0,0.000149,2]
[354116390,1740255052331,-182.381664,0.000149,2]
[354116391,1740255052342,-182.381664,0.000149,2]
[354116392,1740255052351,-6300.0,0.000149,5]
[354116393,1740255052361,-420125.558645,0.000149,3]
[354116394,1740255052371,-151.0,0.000149,2]
[354116395,1740255052381,-1000.0,0.00014908,2]
[354116396,1740255052390,-1000.0,0.0001491,2]
[354116397,1740255052400,-519.17,0.00014942,2]
[354116398,1740255052410,-23340.3088136,0.0001499,3]
[354116399,1740255052419,-9603.0,0.00015,3]
[354116400,1740255052429,-152.08776963,0.00015,20]
[354116401,1740255052439,-248.0,0.00015035,3]
[354116402,1740255052448,-500.0,0.00015036,2]
[354116403,1740255052458,-2185.83,0.00015068,2]
[354116404,1740255052467,-300.0,0.00015068,2]
[354116405,1740255052477,-300.89,0.00015096,2]
[354116406,1740255052487,-1732.0,0.000151,2]
[354116407,1740255052498,-31650.3974834,0.00015135,3]
[354116408,1740255052510,-150.0,0.00015141,2]
[354116409,1740255052521,-17196.5153912,0.00015145,2]
[354116410,1740255052531,-26854.30388403,0.00015145,2]
[354116411,1740255052540,-454.03,0.00015173,2]
[354116412,1740255052549,-206.74936636,0.00015186,2]
[354116413,1740255052559,-1732.0,0.00015256,2]
[354116414,1740255052569,-198.095966,0.0001531,2]
[354116415,1740255052579,-323.790324,0.0001531,2]
[354116416,1740255052588,-323.790324,0.0001531,2]
[354116417,1740255052597,-151.0,0.0001531,2]
[354116418,1740255052607,-1732.0,0.00015411,2]
[354116419,1740255052616,-150.0,0.00015501,2]
[354116420,1740255052626,-325.37,0.00015516,2]
[354116421,1740255052635,-206.74936636,0.00015543,2]
[354116422,1740255052645,-1732.0,0.00015567,2]
[354116423,1740255052654,-1732.0,0.00015723,2]
[354116424,1740255052663,-248.0,0.00015732,3]
[354116425,1740255052672,-1749.0,0.000158,2]
[354116426,1740255052682,-150.0,0.00015862,2]
[354116427,1740255052692,-1732.0,0.00015878,2]
[354116428,1740255052701,-273.24425686,0.000159,2]
[354116429,1740255052710,-206.74936636,0.000159,2]
[354116430,1740255052720,-23340.3088136,0.00015974,3]
[354116431,1740255052730,-151.0,0.00015975,2]
[354116432,1740255052739,-1785.0,0.00015985,2]
[354116433,1740255052749,-150.0,0.00015985,2]
[354116434,1740255052759,-1008.0,0.00015985,2]
[354116435,1740255052769,-3914.0,0.00015985,2]
[354116436,1740255052779,-682.685,0.00015985,2]
[354116437,1740255052788,-2000.0,0.00016,2]
[354116438,1740255052798,-700.0,0.00016,2]
[354116439,1740255052808,-3192.627424,0.0001601,2]
[354116440,1740255052949,-202.0,0.0001602,2]
[354116441,1740255052959,-1732.0,0.00016034,2]
[354116442,1740255052969,-197.115721,0.00016116,2]
[354116443,1740255052979,-151.0,0.00016116,2]
[354116444,1740255052991,-173.860644,0.00016116,2]
[354116445,1740255053001,-173.860644,0.00016116,2]
[354116446,1740255053011,-151.0,0.00016116,2]
[354116447,1740255053021,-17196.5153912,0.00016194,2]
[354116448,1740255053031,-26854.30388403,0.00016194,2]
[354116449,1740255053041,-183.174854,0.00016194,2]
[354116450,1740255053051,-183.174854,0.00016194,2]
[354116451,1740255053061,-201.023471,0.00016194,2]
[354116452,1740255053073,-201.023471,0.00016194,2]
[354116453,1740255053082,-150.0,0.00016222,2]
[354116454,1740255053092,-206.74936636,0.00016257,2]
[354116455,1740255053102,-150.0,0.00016324,2]
[354116456,1740255053112,-1000.0,0.00016384,2]
[354116457,1740255053122,-202.0,0.0001642,2]
[354116458,1740255053132,-248.0,0.00016428,3]
[354116459,1740255053142,-300.0,0.00016438,2]
[354116460,1740255053151,-3381.313,0.00016489,2]
[354116461,1740255053161,-171.848,0.00016489,2]
[354116462,1740255053171,-152.572662,0.00016489,2]
[354116463,1740255053180,-213.410118,0.00016489,2]
[354116464,1740255053189,-213.410118,0.00016489,2]
[354116465,1740255053200,-150.0,0.00016583,2]
[354116466,1740255053209,-206.74936636,0.00016614,2]
[354116467,1740255053219,-176.51,0.00016712,2]
[354116468,1740255053228,-439.34,0.00016716,2]
[354116469,1740255053237,-439.34,0.00016716,2]
[354116470,1740255053246,-187.09,0.00016716,2]
[354116471,1740255053255,-152.36,0.000168,31]
[354116472,1740255053264,-152.36,0.000168,31]
[354116473,1740255053273,-152.36,0.000168,31]
[354116474,1740255053282,-152.36,0.000168,31]
[354116475,1740255053291,-152.36,0.000168,31]
[354116476,1740255053302,-152.36,0.000168,31]
[354116477,1740255053312,-152.36,0.000168,31]
[354116478,1740255053321,-202.0,0.0001681,2]
[354116479,1740255053331,-23340.3088136,0.0001689,3]
[354116480,1740255053340,-151.0,0.000169,2]
[354116481,1740255053350,-151.0,0.000169,2]
[354116482,1740255053360,-151.0,0.000169,2]
[354116483,1740255053370,-151.0,0.000169,2]
[354116484,1740255053379,-409.503675,0.000169,2]
[354116485,1740255053389,-151.0,0.000169,2]
[354116486,1740255053399,-409.503675,0.000169,2]
[354116487,1740255053408,-151.0,0.000169,2]
[354116488,1740255053418,-151.0,0.000169,2]
[354116489,1740255053434,-151.860429,0.000169,2]
[354116490,1740255053447,-151.0,0.000169,2]
[354116491,1740255053457,-151.0,0.000169,2]
[354116492,1740255053466,-337.474748,0.000169,2]
[354116493,1740255053475,-337.474748,0.000169,2]
[354116494,1740255053484,-190.131182,0.000169,2]
[354116495,1740255053494,-190.131182,0.000169,2]
[354116496,1740255053504,-232.106477,0.000169,2]
[354116497,1740255053513,-232.106477,0.000169,2]
[354116498,1740255053523,-150.0,0.00016943,2]
[354116499,1740255053532,-161.62666198,0.00016945,2]
[354116500,1740255053542,-206.74936636,0.00016971,2]
[354116501,1740255053552,-248.0,0.00017125,3]
[354116502,1740255053561,-519.17,0.00017183,2]
[354116503,1740255053570,-202.0,0.0001721,2]
[354116504,1740255053579,-273.24425686,0.00017233,2]
[354116505,1740255053589,-323.790324,0.00017243,2]
[354116506,1740255053598,-323.790324,0.00017243,2]
[354116507,1740255053607,-290.109379,0.00017243,2]
[354116508,1740255053616,-151.0,0.00017243,2]
[354116509,1740255053626,-151.0,0.00017243,2]
[354116510,1740255053635,-151.0,0.00017243,2]
[354116511,1740255053644,-17196.5153912,0.00017243,2]
[354116512,1740255053654,-182.381664,0.00017243,2]
[354116513,1740255053663,-182.381664,0.00017243,2]
[354116514,1740255053673,-26854.30388403,0.00017243,2]
[354116515,1740255053682,-151.0,0.00017243,2]
[354116516,1740255053691,-178.961456,0.00017243,2]
[354116517,1740255053701,-3607.742892,0.00017243,2]
[354116518,1740255053710,-151.0,0.00017243,2]
[354116519,1740255053720,-3607.742892,0.00017243,2]
[354116520,1740255053729,-2185.83,0.0001726,4]
[354116521,1740255053739,-150.0,0.00017304,2]
[354116522,1740255053748,-206.74936636,0.00017329,2]
[354116523,1740255053757,-202.0,0.000176,2]
[354116524,1740255053766,-152.0,0.00017643,3]
[354116525,1740255053775,-1000.0,0.00017649,2]
[354116526,1740255053784,-150.0,0.00017664,2]
[354116527,1740255053793,-206.74936636,0.00017686,2]
[354116528,1740255053803,-600.0,0.00017808,2]
[354116529,1740255053812,-63547.31086463,0.00017813,2]
[354116530,1740255053821,-151.0,0.00017813,2]
[354116531,1740255053830,-248.0,0.00017821,3]
[354116532,1740255053839,-1235.13,0.000179,7]
[354116533,1740255053849,-151.0,0.000179,2]
[354116534,1740255053859,-8400.0,0.000179,6]
[354116535,1740255053868,-1000.0,0.00017999,7]
[354116536,1740255053877,-1000.0,0.00017999,14]
[354116537,1740255053886,-69999.50355981,0.00018,2]
[354116538,1740255053895,-202.0,0.00018,2]
[354116539,1740255053905,-217.0,0.00018,2]
[354116540,1740255053915,-151.0,0.00018,2]
[354116541,1740255053924,-70020.9264409,0.00018003,3]
[354116542,1740255053933,-300.0,0.00018012,2]
[354116543,1740255053944,-120000.00004619,0.00018013,2]
[354116544,1740255053954,-173.860644,0.00018013,2]
[354116545,1740255053964,-173.860644,0.00018013,2]
[354116546,1740255053975,-323.790324,0.00018013,2]
[354116547,1740255053986,-323.790324,0.00018013,2]
[354116548,1740255053997,-151.0,0.00018013,2]
[354116549,1740255054007,-213.410118,0.00018013,2]
[354116550,1740255054018,-213.410118,0.00018013,2]
[354116551,1740255054029,-151.0,0.00018013,2]
[354116552,1740255054040,-151.0,0.00018013,2]
[354116553,1740255054050,-151.0,0.00018013,2]
[354116554,1740255054061,-151.0,0.00018013,2]
[354116555,1740255054070,-409.503675,0.00018013,2]
[354116556,1740255054080,-151.0,0.00018013,2]
[354116557,1740255054089,-409.503675,0.00018013,2]
[354116558,1740255054099,-151.0,0.00018013,2]
[354116559,1740255054108,-151.0,0.00018013,2]
[354116560,1740255054118,-151.0,0.00018013,2]
[354116561,1740255054127,-151.0,0.00018013,2]
[354116562,1740255054136,-151.0,0.00018013,2]
[354116563,1740255054145,-151.0,0.00018013,2]
[354116564,1740255054154,-151.0,0.00018013,2]
[354116565,1740255054164,-337.474748,0.00018013,2]
[354116566,1740255054173,-337.474748,0.00018013,2]
[354116567,1740255054182,-190.131182,0.00018013,2]
[354116568,1740255054191,-190.131182,0.00018013,2]
[354116569,1740255054200,-182.381664,0.00018013,2]
[354116570,1740255054210,-182.381664,0.00018013,2]
[354116571,1740255054219,-232.106477,0.00018013,2]
[354116572,1740255054228,-232.106477,0.00018013,2]
[354116573,1740255054238,-183.174854,0.00018013,2]
[354116574,1740255054247,-183.174854,0.00018013,2]
[354116575,1740255054257,-151.0,0.00018013,2]
[354116576,1740255054266,-201.023471,0.00018013,2]
[354116577,1740255054275,-201.023471,0.00018013,2]
[354116578,1740255054286,-3607.742892,0.00018013,2]
[354116579,1740255054295,-151.0,0.00018013,2]
[354116580,1740255054305,-3607.742892,0.00018013,2]
[354116581,1740255054315,-150.0,0.00018025,2]
[354116582,1740255054325,-206.74936636,0.00018043,2]
[354116583,1740255054335,-151.0,0.00018082,2]
[354116584,1740255054344,-200.0,0.00018082,2]
[354116585,1740255054353,-5000.0,0.000181,2]
[354116586,1740255054362,-46680.6176273,0.0001819,3]
[354116587,1740255054372,-17196.5153912,0.00018292,2]
[354116588,1740255054383,-26854.30388403,0.00018292,2]
[354116589,1740255054393,-176.23754595,0.000183,2]
[354116590,1740255054403,-1024.53176198,0.000183,3]
[354116591,1740255054413,-1337.27,0.00018372,2]
[354116592,1740255054422,-440.37,0.00018372,2]
[354116593,1740255054434,-440.37,0.00018372,2]
[354116594,1740255054444,-440.37,0.00018372,2]
[354116595,1740255054454,-439.57,0.00018372,2]
[354116596,1740255054465,-329.8532511,0.00018379,2]
[354116597,1740255054475,-150.0,0.00018385,2]
[354116598,1740255054485,-202.0,0.0001839,2]
[354116599,1740255054494,-217.0,0.0001839,2]
[354116600,1740255054504,-206.0,0.0001839,2]
[354116601,1740255054514,-661879.0802526,0.000184,2]
[354116602,1740255054524,-63134.42421896,0.000184,2]
[354116603,1740255054535,-151.0,0.000184,2]
[354116604,1740255054545,-151.0,0.000184,2]
[354116605,1740255054553,-173.860644,0.000184,2]
[354116606,1740255054563,-173.860644,0.000184,2]
[354116607,1740255054571,-323.790324,0.000184,2]
[354116608,1740255054580,-323.790324,0.000184,2]
[354116609,1740255054589,-151.0,0.000184,2]
[354116610,1740255054598,-213.410118,0.000184,2]
[354116611,1740255054607,-213.410118,0.000184,2]
[354116612,1740255054615,-181.392086,0.000184,2]
[354116613,1740255054624,-167.012525,0.000184,2]
[354116614,1740255054633,-151.0,0.000184,2]
[354116615,1740255054642,-151.0,0.000184,2]
[354116616,1740255054651,-409.503675,0.000184,2]
[354116617,1740255054660,-151.0,0.000184,2]
[354116618,1740255054669,-409.503675,0.000184,2]
[354116619,1740255054678,-261.52914048,0.000184,2]
[354116620,1740255054687,-151.0,0.000184,2]
[354116621,1740255054695,-151.0,0.000184,2]
[354116622,1740255054704,-151.0,0.000184,2]
[354116623,1740255054712,-151.0,0.000184,2]
[354116624,1740255054722,-151.0,0.000184,2]
[354116625,1740255054731,-337.474748,0.000184,2]
[354116626,1740255054739,-337.474748,0.000184,2]
[354116627,1740255054749,-190.131182,0.000184,2]
[354116628,1740255054757,-190.131182,0.000184,2]
[354116629,1740255054766,-182.381664,0.000184,2]
[354116630,1740255054776,-182.381664,0.000184,2]
[354116631,1740255054785,-232.106477,0.000184,2]
[354116632,1740255054794,-232.106477,0.000184,2]
[354116633,1740255054803,-183.174854,0.000184,2]
[354116634,1740255054812,-183.174854,0.000184,2]
[354116635,1740255054821,-151.0,0.000184,2]
[354116636,1740255054830,-201.023471,0.000184,2]
[354116637,1740255054839,-201.023471,0.000184,2]
[354116638,1740255054848,-206.74936636,0.000184,2]
[354116639,1740255054858,-3607.742892,0.000184,2]
[354116640,1740255054867,-3607.742892,0.000184,2]
[354116641,1740255054876,-248.0,0.00018518,3]
[354116642,1740255054886,-152.0,0.00018525,4]
[354116643,1740255054895,-510459.77877442,0.00018551,30]
[354116644,1740255054904,-33273.11719143,0.00018554,30]
[354116645,1740255054914,-33273.11719143,0.0001856,30]
[354116646,1740255054924,-273.24425686,0.00018567,2]
[354116647,1740255054933,-19801.8372505,0.00018574,30]
[354116648,1740255054943,-19801.8372505,0.00018576,30]
[354116649,1740255054953,-483566.5908083,0.00018578,30]
[354116650,1740255054962,-280.34380654,0.00018587,30]
[354116651,1740255054972,-483566.5908083,0.00018587,30]
[354116652,1740255054981,-1576.03654693,0.00018588,30]
[354116653,1740255054995,-1576.03654693,0.00018589,30]
[354116654,1740255055005,-427768.3964572,0.0001859,30]
[354116655,1740255055134,-619.39818052,0.0001859,30]
[354116656,1740255055176,-266.9819,0.00012329,2]
[354116657,1740255055185,-440.4079016,0.0001859,30]
[354116658,1740255055196,-642.84999967,0.0001859,30]
[354116659,1740255055207,-553.69999999,0.0001859,30]
[354116660,1740255055218,-490.44133234,0.0001859,30]
[354116661,1740255055229,-672.54591315,0.0001859,30]
[354116662,1740255055263,-20225.04983083,0.0001859,30]
[354116663,1740255055276,-631.0339,0.0001859,30]
[354116664,1740255055288,-1968.8047725,0.0001859,30]
[354116665,1740255055299,-29553.9625205,0.0001859,30]
[354116666,1740255055309,-22422.33802496,0.00018591,30]
[354116667,1740255055318,-794.23097184,0.00018595,30]
[354116668,1740255055328,-280.34380654,0.00018599,30]
[354116669,1740255055337,-18218.00170942,0.000186,3]
[354116670,1740255055348,-322.75414538,0.000186,3]
[354116671,1740255055360,-1010.71841229,0.000186,3]
[354116672,1740255055371,-3251.10317701,0.000186,3]
[354116681,1740256059978,311.16,8.767e-05,2]
[354116701,1740256231690,-300.0,9.999e-05,2]
[354116702,1740256231700,-150.0,9.999e-05,2]
[354116703,1740256231709,-5103.0,0.0001,2]
[354116704,1740256231801,-9830.7,0.0001,2]
[354116725,1740256237479,-20934.53961753,0.0001,2]
[354116735,1740256237750,-3324.495,0.0001,2]
[354116736,1740256237807,-53073.34058701,0.0001,2]
[354116740,1740256239705,-277.27067999,0.0001,2]
[354116745,1740256242673,-10169.79026183,0.0001,2]
[354116746,1740256242730,-483.555,0.0001,2]
[354116774,1740256245613,-856.7929336,0.0001,2]
[354116787,1740256728937,506.0,0.00020133,120]
[354116790,1740256815363,611.49,9.216e-05,2]
[354116793,1740257079101,150.06,8.767e-05,2]
[354116794,1740257354005,-448.32482545,9.999e-05,2]
[354116795,1740257354027,-500.0,9.999e-05,2]
[354116796,1740257354048,-150.0,9.999e-05,2]
[354116797,1740257354068,-300.0,9.999e-05,2]
[354116798,1740257354091,-8601.67517455,0.0001,2]
[354116799,1740257354905,-10000.0,0.0001,2]
[354116800,1740257355497,-10000.0,0.0001,2]
[354116801,1740257356286,-10000.0,0.0001,2]
[354116802,1740257356490,-10000.0,0.0001,2]
[354116803,1740257357222,-10000.0,0.0001,2]
[354116804,1740257357422,-10000.0,0.0001,2]
[354116805,1740257357968,-10000.0,0.0001,2]
[354116806,1740257358385,-10000.0,0.0001,2]
[354116807,1740257358903,-10000.0,0.0001,2]
[354116808,1740257359530,-10000.0,0.0001,2]
[354116809,1740257360141,-10000.0,0.0001,2]
[354116810,1740257360657,-10000.0,0.0001,2]
[354116811,1740257361124,-6548.4940236,0.0001,2]
[354116812,1740257361146,-550.0,0.0001,2]
[354116813,1740257361167,-365.77525998,0.0001,2]
[354116814,1740257361188,-2535.73071642,0.0001,2]
[354116815,1740257361490,-10000.0,0.0001,2]
[354116816,1740257362059,-10000.0,0.0001,2]
[354116817,1740257362409,-10000.0,0.0001,2]
[354116818,1740257362973,-10000.0,0.0001,2]
[354116819,1740257363556,-10000.0,0.0001,2]
[354116820,1740257367943,-10000.0,0.0001,2]
[354116821,1740257368570,-8494.01522039,0.0001,2]
[354116822,1740257368592,-167.14941036,0.0001,2]
[354116823,1740257368613,-155.0,0.0001,3]
[354116824,1740257368634,-332.56686,0.0001,2]
[354116825,1740257368656,-574.48039059,0.0001,2]
[354116826,1740257373380,276.78811866,9.9e-05,2]
[354116827,1740257431770,-155.0,9.9e-05,3]
[354116828,1740257431779,-1323.87,9.9e-05,2]
[354116829,1740257431825,-620.11808134,9.9e-05,2]
[354116830,1740257431835,-7839.42772,0.00010835,2]
[354116831,1740257431845,-500.0,0.0001089,2]
[354116832,1740257431854,-182.0217411,0.00010954,2]
[354116833,1740257431864,-494.75,0.00010955,2]
[354116834,1740257431873,-493.19,0.00010955,2]
[354116835,1740257431883,-504.43,0.00010955,2]
[354116836,1740257431892,-490.48,0.00010955,2]
[354116837,1740257431901,-505.42,0.00010955,2]
[354116838,1740257431912,-507.48,0.00010955,2]
[354116839,1740257431922,-505.23,0.00010955,2]
[354116840,1740257431931,-503.56,0.00010955,2]
[354116841,1740257431940,-504.6,0.00010955,2]
[354116842,1740257431951,-499.02,0.00010955,2]
[354116843,1740257431960,-496.98,0.00010955,2]
[354116844,1740257431969,-505.73,0.00010955,2]
[354116845,1740257431978,-506.5,0.00010955,2]
[354116846,1740257431988,-500.93,0.00010955,2]
[354116847,1740257431998,-497.73,0.00010955,2]
[354116848,1740257432008,-1100.33037754,0.00010956,2]
[354116849,1740257432019,-207.868765,0.00010958,2]
[354116850,1740257432029,-255.626973,0.00010958,2]
[354116851,1740257432039,-156.344404,0.00010958,2]
[354116852,1740257432048,-171.487167,0.00010958,2]
[354116853,1740257432058,-150.0,0.00010958,2]
[354116854,1740257432067,-500.0,0.00010999,2]
[354116855,1740257432076,-255.0,0.00010999,2]
[354116856,1740257432085,-523.74900737,0.00010999,2]
[354116858,1740257432094,-500.0,0.00011035,2]
[354116859,1740257432103,-647.70015754,0.00011035,2]
[354116861,1740257432112,-500.0,0.00011035,2]
[354116863,1740257432121,-500.0,0.00011035,2]
[354116865,1740257432130,-500.0,0.00011035,2]
[354116867,1740257432139,-500.0,0.00011035,2]
[354116869,1740257432148,-500.0,0.00011035,2]
[354116871,1740257432157,-500.0,0.00011035,2]
[354116873,1740257432166,-500.0,0.00011035,2]
[354116876,1740257432175,-433.36801888,0.00011035,2]
[354116878,1740257432184,-500.0,0.00011035,2]
[354116879,1740257432193,-500.0,0.00011035,2]
[354116881,1740257432203,-500.0,0.00011035,2]
[354116882,1740257432211,-500.0,0.00011035,2]
[354116883,1740257432220,-500.0,0.00011035,2]
[354116884,1740257432229,-278.64826323,0.00011035,2]
[354117418,1740257437738,-221.35173677,0.00011035,2]
[354117420,1740257437747,-500.0,0.00011035,2]
[354117422,1740257437757,-500.0,0.00011035,2]
[354117424,1740257437766,-375.18887499,0.00011035,2]
[354117426,1740257437778,-124.81112501,0.00011035,2]
[354117428,1740257437788,-150.0,0.00011036,2]
[354117430,1740257437798,-281.29,0.00011095,2]
[354117432,1740257437806,-87.41387499,0.00011095,2]
[354117435,1740257437822,-412.58612501,0.00011095,2]
[354117437,1740257437831,-500.0,0.00011095,2]
[354117439,1740257437840,-500.0,0.00011095,2]
[354117441,1740257437850,-500.0,0.00011095,2]
[354117443,1740257437859,-157.24,0.00011095,2]
[354117445,1740257437869,-338.9,0.00011095,2]
[354117447,1740257437878,-500.0,0.00011095,2]
[354117449,1740257437888,-500.0,0.00011095,2]
[354117451,1740257437897,-500.0,0.00011095,2]
[354117453,1740257437907,-500.0,0.00011095,2]
[354117455,1740257437920,-500.0,0.00011095,2]
[354117457,1740257437929,-500.0,0.00011095,2]
[354117459,1740257437938,-13175.45001377,0.00011096,2]
[354117461,1740257437951,-1025.27472139,0.00011096,2]
[354117464,1740257437962,-1879.79073718,0.00011096,2]
[354117466,1740257437973,-7819.48452766,0.00011096,2]
[354117468,1740257437982,-2187.09527138,0.00011099,2]
[354117471,1740257437999,-93.57089617,0.00011099,2]
[354117473,1740257438009,-354.92908383,0.00011099,2]
[354117475,1740257438020,-1925.7370837,0.00011099,2]
[354117477,1740257438029,-225.8208016,0.000111,2]
[354117479,1740257438040,-106.7460584,0.000111,2]
[354117481,1740257438049,-155.0,0.0001111,3]
[354117483,1740257438058,-182.76,0.00011113,2]
[354117485,1740257438067,-500.0,0.00011117,2]
[354117487,1740257438076,-500.0,0.00011117,2]
[354117489,1740257438085,-500.0,0.00011117,2]
[354117491,1740257438094,-500.0,0.00011117,2]
[354117493,1740257438103,-389.5406477,0.00011117,2]
[354117495,1740257438112,-500.0,0.00011117,2]
[354117497,1740257438122,-500.0,0.00011117,2]
[354117499,1740257438131,-500.0,0.00011117,2]
[354117501,1740257438140,-500.0,0.00011117,2]
[354117503,1740257438149,-500.0,0.00011117,2]
[354117505,1740257438158,-500.0,0.00011117,2]
[354117506,1740257438167,-218.16,0.00011119,2]
[354117507,1740257438177,-390.5979099,0.00011138,2]
[354117508,1740257438188,-466.04475668,0.00011138,2]
[354117509,1740257438200,-143.35733342,0.00011138,2]
[354117510,1740257438209,-488.75436661,0.00011152,2]
[354117511,1740257438220,-763.50334123,0.00011152,2]
[354117512,1740257438230,-277.40067284,0.00011152,2]
[354117514,1740257438242,-470.34161932,0.00011152,2]
[354117516,1740257438251,-500.0,0.00011156,2]
[354117518,1740257438261,-92.65974686,0.00011168,2]
[354117519,1740257438272,-644.62025314,0.00011168,2]
[354117521,1740257438281,-250.0,0.00011177,2]
[354117523,1740257438291,-1.61797841,0.00011179,2]
[354117525,1740257438302,-447.43202159,0.00011179,2]
[354117527,1740257438311,-1500.0,0.00011188,2]
[354117529,1740257438320,-500.0,0.000112,2]
[354117531,1740257438332,-1905.74,0.00011205,2]
[354117533,1740257438341,-207.868765,0.00011205,2]
[354117535,1740257438351,-171.487167,0.00011205,2]
[354117537,1740257438359,-174.64,0.00011225,2]
[354117539,1740257438369,-163.07,0.00011282,2]
[354117541,1740257438378,-170.77,0.00011338,2]
[354117543,1740257438387,-315.94,0.00011436,2]
[354117545,1740257438397,-150.0,0.0001147,2]
[354117547,1740257438406,-1.45239579,0.00011479,2]
[354117549,1740257438418,-610.03760421,0.00011479,2]
[354117551,1740257438427,-327.95,0.00011507,2]
[354117553,1740257438436,-3083.17,0.00011552,2]
[354117555,1740257438445,-181.12,0.00011671,2]
[354117557,1740257438455,-212.43387665,0.000119,2]
[354117559,1740257438464,-2280.66616753,0.00011998,2]
[354117561,1740257438473,-150.0,0.00012054,2]
[354117563,1740257438482,-856.79,0.00012055,2]
[354117565,1740257438492,-150.0,0.00012099,2]
[354117567,1740257438501,-155.0,0.0001232,3]
[354117569,1740257438510,-1000.0,0.00012328,2]
[354117571,1740257438519,-321.26517686,0.0001235,2]
[354117573,1740257438531,-11.30168314,0.0001235,2]
[354117575,1740257438540,-250.0,0.00012469,2]
[354117577,1740257438549,-1000.0,0.0001253,2]
[354117579,1740257438559,-1000.0,0.00012602,2]
[354117581,1740257438568,-212.43387655,0.0001265,2]
[354117583,1740257438578,-1000.0,0.00012876,2]
[354117585,1740257438587,-607.58825599,0.00012975,3]
[354117587,1740257438597,-2719.49390408,0.00012975,2]
[354117589,1740257438606,-247.02,0.00013,2]
[354117591,1740257438615,-157.39,0.00013,2]
[354117593,1740257438624,-2280.66616753,0.00013047,2]
[354117595,1740257438634,-919.3,0.0001315,2]
[354117597,1740257438643,-170.77,0.00013209,2]
[354117599,1740257438652,-150.0,0.00013389,2]
[354117601,1740257438661,-150.0,0.00013389,2]
[354117603,1740257438670,-212.43387655,0.000134,2]
[354117605,1740257438679,-155.0,0.0001353,3]
[354117607,1740257438689,-150.0,0.00013554,2]
[354117609,1740257438699,-1009.0,0.0001358,2]
[354117612,1740257438708,-150.0,0.0001358,2]
[354117614,1740257438718,-2693.337,0.0001358,2]
[354117615,1740257438728,-332.56686,0.000136,2]
[354117618,1740257438738,-200.0,0.00013699,2]
[354117620,1740257438748,-150.0,0.00013699,2]
[354117622,1740257438758,-150.0,0.0001372,2]
[354117624,1740257438770,-611.49,0.00013743,2]
[354117625,1740257438780,-150.0,0.00013761,2]
[354117628,1740257438790,-150.0,0.00013885,2]
[354117629,1740257438799,-182.76,0.00013891,2]
[354117631,1740257438808,-500.0,0.00013899,2]
[354117633,1740257438817,-500.0,0.00013899,2]
[354117635,1740257438827,-243.83578368,0.00013899,2]
[354117637,1740257438836,-500.0,0.00013899,2]
[354117639,1740257438846,-500.0,0.00013899,2]
[354117641,1740257438855,-500.0,0.00013899,2]
[354117643,1740257438865,-629.48,0.00013899,2]